fUSD/lending_fUSD_20240611
["ID","MTS","AMOUNT","RATE_DAILY","PERIOD"]
[329108307,1718109073406,-500.0,0.00024794,2]
[329108308,1718109073416,-227.172675,0.00024794,7]
[329108309,1718109073427,-227.172675,0.00024794,7]
[329108310,1718109073439,-227.172675,0.00024794,7]
[329108311,1718109073450,-590.07,0.00024794,2]
[329108312,1718109073459,-151.0,0.00024798,7]
[329108313,1718109073470,-152.11981,0.00024798,7]
[329108314,1718109073480,-151.0,0.00024798,7]
[329108315,1718109073490,-151.0,0.00024798,7]
[329108316,1718109073500,-200.15404,0.00024798,7]
[329108317,1718109073510,-300.0,0.000248,9]
[329108318,1718109073520,-277.43019296,0.00024824,2]
[329108319,1718109073531,-1163.25112,0.0002485,2]
[329108320,1718109073540,-300.0,0.000249,9]
[329108321,1718109073550,-150.0,0.0002493,10]
[329108322,1718109073560,-150.0,0.0002493,10]
[329108323,1718109073571,-150.0,0.0002493,10]
[329108324,1718109073580,-150.0,0.0002493,10]
[329108325,1718109073590,-150.0,0.0002493,10]
[329108326,1718109073600,-150.0,0.0002493,10]
[329108327,1718109073611,-150.0,0.0002493,10]
[329108328,1718109073621,-150.0,0.0002493,10]
[329108329,1718109073632,-150.0,0.0002493,10]
[329108330,1718109073643,-150.0,0.0002493,10]
[329108331,1718109073654,-3256.43,0.0002493,2]
[329108332,1718109073664,-3256.43,0.0002493,2]
[329108333,1718109073675,-3256.43,0.0002493,2]
[329108334,1718109073687,-3256.43,0.0002493,2]
[329108335,1718109073697,-151.0,0.0002493,7]
[329108336,1718109073706,-151.0,0.0002493,7]
[329108337,1718109073717,-151.0,0.0002493,7]
[329108338,1718109073727,-151.0,0.0002493,7]
[329108339,1718109073737,-500.0,0.0002493,2]
[329108340,1718109073747,-500.0,0.0002493,2]
[329108341,1718109073757,-500.0,0.0002493,2]
[329108342,1718109073768,-500.0,0.0002493,2]
[329108343,1718109073778,-3032.59,0.0002493,2]
[329108344,1718109073788,-3032.59,0.0002493,2]
[329108345,1718109073798,-3032.59,0.0002493,2]
[329108346,1718109073809,-3032.59,0.0002493,2]
[329108347,1718109073819,-151.0,0.0002493,7]
[329108348,1718109073829,-500.0,0.00024931,2]
[329108349,1718109073840,-234.56822299,0.00024931,2]
[329108350,1718109073850,-500.0,0.00024931,2]
[329108351,1718109073861,-500.0,0.00024931,2]
[329108352,1718109073871,-500.0,0.00024931,2]
[329108353,1718109073881,-500.0,0.00024931,2]
[329108354,1718109073891,-500.0,0.00024931,2]
[329108355,1718109073902,-665.26,0.00024931,2]
[329108356,1718109073912,-151.0,0.00024931,7]
[329108357,1718109073922,-1436.93,0.00024931,2]
[329108358,1718109073935,-500.0,0.00024931,2]
[329108359,1718109073944,-500.0,0.00024931,2]
[329108360,1718109073954,-500.0,0.00024931,2]
[329108361,1718109073964,-1026.41,0.00024931,2]
[329108362,1718109073974,-500.0,0.00024931,2]
[329108363,1718109073984,-780.95,0.00024931,2]
[329108364,1718109073994,-500.0,0.00024931,2]
[329108365,1718109074003,-514.22350038,0.00024931,2]
[329108366,1718109074014,-500.0,0.00024931,2]
[329108367,1718109074025,-500.0,0.00024931,2]
[329108368,1718109074038,-1406.41,0.00024931,2]
[329108369,1718109074049,-500.0,0.00024931,2]
[329108370,1718109074060,-938.04,0.00024931,2]
[329108371,1718109074072,-500.0,0.00024931,2]
[329108372,1718109074083,-587.0,0.00024931,2]
[329108373,1718109074093,-500.0,0.00024931,2]
[329108374,1718109074105,-500.0,0.00024931,2]
[329108375,1718109074116,-500.0,0.00024931,2]
[329108376,1718109074125,-500.0,0.00024931,2]
[329108377,1718109074135,-250.0,0.00024931,2]
[329108378,1718109074145,-500.0,0.00024931,2]
[329108379,1718109074156,-500.0,0.00024931,2]
[329108380,1718109074166,-500.0,0.00024931,2]
[329108381,1718109074177,-500.0,0.00024931,2]
[329108382,1718109074189,-500.0,0.00024931,2]
[329108383,1718109074200,-500.0,0.00024931,2]
[329108384,1718109074209,-500.0,0.00024931,2]
[329108385,1718109074220,-500.0,0.00024931,2]
[329108386,1718109074230,-500.0,0.00024931,2]
[329108387,1718109074241,-553.45,0.00024931,2]
[329108388,1718109074251,-151.0,0.00024931,7]
[329108389,1718109074266,-269.31454345,0.00024931,7]
[329108390,1718109074279,-500.0,0.00024931,2]
[329108391,1718109074290,-957.97,0.00024931,2]
[329108392,1718109074300,-500.0,0.00024931,2]
[329108393,1718109074311,-500.0,0.00024931,2]
[329108394,1718109074321,-500.0,0.00024931,2]
[329108395,1718109074332,-500.0,0.00024931,2]
[329108396,1718109074342,-500.0,0.00024931,2]
[329108397,1718109074352,-500.0,0.00024931,2]
[329108398,1718109074362,-615.07,0.00024931,2]
[329108399,1718109074372,-151.0,0.00024931,7]
[329108400,1718109074382,-500.0,0.00024931,2]
[329108401,1718109074392,-500.0,0.00024931,2]
[329108402,1718109074402,-500.0,0.00024931,2]
[329108403,1718109074412,-500.0,0.00024931,2]
[329108404,1718109074421,-500.0,0.00024931,2]
[329108405,1718109074431,-500.0,0.00024931,2]
[329108406,1718109074442,-500.0,0.00024931,2]
[329108407,1718109074452,-421.6802937,0.00024931,2]
[329108408,1718109074462,-637.44,0.00024931,2]
[329108409,1718109074472,-500.0,0.00024931,2]
[329108410,1718109074482,-500.0,0.00024931,2]
[329108411,1718109074491,-500.0,0.00024931,2]
[329108412,1718109074501,-777.75,0.00024931,2]
[329108413,1718109074512,-726.23,0.00024931,2]
[329108414,1718109074522,-500.0,0.00024931,2]
[329108415,1718109074532,-500.0,0.00024931,2]
[329108416,1718109074542,-500.0,0.00024931,2]
[329108417,1718109074552,-500.0,0.00024931,2]
[329108418,1718109074562,-500.0,0.00024931,2]
[329108419,1718109074577,-500.0,0.00024931,2]
[329108420,1718109074598,-998.68,0.00024931,2]
[329108421,1718109074612,-249.97718965,0.00024931,2]
[329108422,1718109074631,-867.59,0.00024931,2]
[329108423,1718109074650,-587.82,0.00024931,2]
[329108424,1718109074671,-500.0,0.00024931,2]
[329108425,1718109074689,-500.0,0.00024931,2]
[329108426,1718109074706,-500.0,0.00024931,2]
[329108427,1718109074723,-500.0,0.00024931,2]
[329108428,1718109074737,-500.0,0.00024931,2]
[329108429,1718109074755,-500.0,0.00024931,2]
[329108430,1718109074774,-500.0,0.00024931,2]
[329108431,1718109074794,-500.0,0.00024931,2]
[329108432,1718109074806,-500.0,0.00024931,2]
[329108433,1718109074821,-572.72,0.00024931,2]
[329108434,1718109074838,-500.0,0.00024931,2]
[329108435,1718109074852,-677.56,0.00024931,2]
[329108436,1718109074868,-350.34548445,0.00024931,2]
[329108437,1718109074881,-551.35,0.00024931,2]
[329108438,1718109074896,-500.0,0.00024931,2]
[329108439,1718109074913,-500.0,0.00024931,2]
[329108440,1718109074929,-500.0,0.00024931,2]
[329108441,1718109074946,-500.0,0.00024931,2]
[329108442,1718109074962,-500.0,0.00024931,2]
[329108443,1718109074982,-519.90156475,0.00024931,2]
[329108444,1718109074998,-151.0,0.00024931,7]
[329108445,1718109075013,-500.0,0.00024931,2]
[329108446,1718109075039,-500.0,0.00024931,2]
[329108447,1718109075057,-500.0,0.00024931,2]
[329108448,1718109075073,-500.0,0.00024931,2]
[329108449,1718109075088,-538.63614642,0.00024931,2]
[329108450,1718109075104,-714.01,0.00024931,2]
[329108451,1718109075120,-766.6,0.00024931,2]
[329108452,1718109075136,-500.0,0.00024931,2]
[329108453,1718109075151,-500.0,0.00024931,2]
[329108454,1718109075167,-500.0,0.00024931,2]
[329108455,1718109075182,-500.0,0.00024931,2]
[329108456,1718109075197,-500.0,0.00024931,2]
[329108457,1718109075212,-541.63675959,0.00024931,2]
[329108458,1718109075228,-500.0,0.00024931,2]
[329108459,1718109075243,-500.0,0.00024931,2]
[329108460,1718109075258,-500.0,0.00024931,2]
[329108461,1718109075274,-557.0578874,0.00024931,2]
[329108462,1718109075289,-500.0,0.00024931,2]
[329108463,1718109075304,-500.0,0.00024931,2]
[329108464,1718109075319,-500.0,0.00024931,2]
[329108465,1718109075334,-500.0,0.00024931,2]
[329108466,1718109075349,-500.0,0.00024931,2]
[329108467,1718109075366,-500.0,0.00024931,2]
[329108468,1718109075381,-500.0,0.00024931,2]
[329108469,1718109075396,-599.05,0.00024931,2]
[329108470,1718109075411,-502.87291728,0.00024931,2]
[329108471,1718109075426,-500.0,0.00024931,2]
[329108472,1718109075442,-500.0,0.00024931,2]
[329108473,1718109075457,-500.0,0.00024931,2]
[329108474,1718109075471,-616.12,0.00024931,2]
[329108475,1718109075486,-500.0,0.00024931,2]
[329108476,1718109075500,-556.85469624,0.00024931,2]
[329108477,1718109075516,-500.0,0.00024931,2]
[329108478,1718109075531,-611.61,0.00024931,2]
[329108479,1718109075545,-569.2,0.00024931,2]
[329108480,1718109075560,-500.0,0.00024931,2]
[329108481,1718109075574,-182.2443307,0.00024931,2]
[329108482,1718109075588,-269.75337618,0.00024931,2]
[329108483,1718109075603,-500.0,0.00024931,2]
[329108484,1718109075617,-500.0,0.00024931,2]
[329108485,1718109075632,-626.66,0.00024931,2]
[329108486,1718109075647,-355.29782781,0.00024931,2]
[329108487,1718109075662,-500.0,0.00024931,2]
[329108488,1718109075677,-500.0,0.00024931,2]
[329108489,1718109075693,-500.0,0.00024931,2]
[329108490,1718109075709,-500.0,0.00024931,2]
[329108491,1718109075723,-500.0,0.00024931,2]
[329108492,1718109075739,-500.0,0.00024931,2]
[329108493,1718109075754,-720.82,0.00024931,2]
[329108494,1718109075769,-504.65301766,0.00024931,2]
[329108495,1718109075785,-500.0,0.00024931,2]
[329108496,1718109075801,-705.97,0.00024931,2]
[329108497,1718109075816,-500.0,0.00024931,2]
[329108498,1718109075831,-500.0,0.00024931,2]
[329108499,1718109075846,-217.51870566,0.00024931,2]
[329108500,1718109075861,-500.0,0.00024931,2]
[329108501,1718109075876,-500.0,0.00024931,2]
[329108502,1718109075892,-500.0,0.00024931,2]
[329108503,1718109075908,-608.67,0.00024931,2]
[329108504,1718109075924,-326.377757,0.00024931,7]
[329108505,1718109075941,-326.377757,0.00024931,7]
[329108506,1718109075957,-537.09600608,0.00024931,2]
[329108507,1718109075971,-500.0,0.00024931,2]
[329108508,1718109075986,-2557.8,0.00024931,2]
[329108509,1718109076000,-502.75,0.00024931,2]
[329108510,1718109076014,-500.0,0.00024931,2]
[329108511,1718109076031,-500.0,0.00024931,2]
[329108512,1718109076046,-326.377757,0.00024931,7]
[329108513,1718109076064,-326.377757,0.00024931,7]
[329108514,1718109076079,-151.0,0.00024931,7]
[329108515,1718109076090,-179.762654,0.00024931,7]
[329108516,1718109076102,-500.0,0.00024931,2]
[329108517,1718109076112,-733.07,0.00024931,2]
[329108518,1718109076123,-500.0,0.00024931,2]
[329108519,1718109076133,-395.51300193,0.00024931,2]
[329108520,1718109076143,-500.0,0.00024931,2]
[329108521,1718109076153,-1586.54,0.00024931,2]
[329108522,1718109076165,-500.0,0.00024931,2]
[329108523,1718109076176,-500.0,0.00024931,2]
[329108524,1718109076187,-500.0,0.00024931,2]
[329108525,1718109076199,-703.97,0.00024931,2]
[329108526,1718109076209,-506.27,0.00024931,2]
[329108527,1718109076219,-500.0,0.00024931,2]
[329108528,1718109076229,-626.49,0.00024931,2]
[329108529,1718109076239,-542.72,0.00024931,2]
[329108530,1718109076249,-500.0,0.00024931,2]
[329108531,1718109076264,-500.0,0.00024931,2]
[329108532,1718109076277,-500.0,0.00024931,2]
[329108533,1718109076287,-500.0,0.00024931,2]
[329108534,1718109076298,-500.0,0.00024931,2]
[329108535,1718109076308,-500.0,0.00024931,2]
[329108536,1718109076319,-500.0,0.00024931,2]
[329108537,1718109076330,-609.8,0.00024931,2]
[329108538,1718109076341,-551.29318421,0.00024931,2]
[329108539,1718109076351,-1040.32,0.00024931,2]
[329108540,1718109076362,-846.44,0.00024931,2]
[329108541,1718109076372,-500.0,0.00024931,2]
[329108542,1718109076383,-500.0,0.00024931,2]
[329108543,1718109076393,-500.0,0.00024931,2]
[329108544,1718109076404,-500.0,0.00024931,2]
[329108545,1718109076414,-569.73832362,0.00024931,2]
[329108546,1718109076425,-500.0,0.00024931,2]
[329108547,1718109076437,-500.0,0.00024931,2]
[329108548,1718109076447,-561.54273942,0.00024931,2]
[329108549,1718109076456,-500.0,0.00024931,2]
[329108550,1718109076466,-500.0,0.00024931,2]
[329108551,1718109076477,-500.0,0.00024931,2]
[329108552,1718109076487,-500.0,0.00024931,2]
[329108553,1718109076497,-500.0,0.00024931,2]
[329108554,1718109076507,-1358.59,0.00024931,2]
[329108555,1718109076517,-614.57,0.00024931,2]
[329108556,1718109076949,-166.4722525,0.00024931,2]
[329108557,1718109076982,-500.0,0.00024931,2]
[329108558,1718109077006,-500.0,0.00024931,2]
[329108559,1718109077027,-500.0,0.00024931,2]
[329108560,1718109077038,-500.0,0.00024931,2]
[329108561,1718109077048,-912.53,0.00024931,2]
[329108562,1718109077059,-500.0,0.00024931,2]
[329108563,1718109077071,-670.43,0.00024931,2]
[329108564,1718109077082,-707.93,0.00024931,2]
[329108565,1718109077092,-500.0,0.00024931,2]
[329108566,1718109077104,-500.0,0.00024931,2]
[329108567,1718109077114,-500.0,0.00024931,2]
[329108568,1718109077125,-590.44307465,0.00024931,2]
[329108569,1718109077135,-500.0,0.00024931,2]
[329108570,1718109077145,-805.74,0.00024931,2]
[329108571,1718109077156,-1201.34,0.00024931,2]
[329108572,1718109077167,-760.1,0.00024931,2]
[329108573,1718109077177,-500.0,0.00024931,2]
[329108574,1718109077188,-500.0,0.00024931,2]
[329108575,1718109077199,-500.0,0.00024931,2]
[329108576,1718109077210,-742.45,0.00024931,2]
[329108577,1718109077220,-500.0,0.00024931,2]
[329108578,1718109077230,-500.0,0.00024931,2]
[329108579,1718109077240,-500.0,0.00024931,2]
[329108580,1718109077249,-500.0,0.00024931,2]
[329108581,1718109077260,-306.298305,0.00024931,7]
[329108582,1718109077272,-306.298305,0.00024931,7]
[329108583,1718109077283,-306.298305,0.00024931,7]
[329108584,1718109077294,-500.0,0.00024931,2]
[329108585,1718109077303,-874.7,0.00024931,2]
[329108586,1718109077313,-500.0,0.00024931,2]
[329108587,1718109077323,-500.0,0.00024931,2]
[329108588,1718109077333,-306.298305,0.00024931,7]
[329108589,1718109077343,-306.298305,0.00024931,7]
[329108590,1718109077353,-306.298305,0.00024931,7]
[329108591,1718109077363,-500.0,0.00024931,2]
[329108592,1718109077373,-500.0,0.00024931,2]
[329108593,1718109077383,-500.0,0.00024931,2]
[329108594,1718109077393,-500.0,0.00024931,2]
[329108595,1718109077403,-993.69,0.00024931,2]
[329108596,1718109077414,-500.53,0.00024931,2]
[329108597,1718109077423,-586.23702724,0.00024931,2]
[329108598,1718109077433,-956.95,0.00024931,2]
[329108599,1718109077444,-500.0,0.00024931,2]
[329108600,1718109077454,-500.0,0.00024931,2]
[329108601,1718109077464,-500.0,0.00024931,2]
[329108602,1718109077474,-500.0,0.00024931,2]
[329108603,1718109077483,-500.0,0.00024931,2]
[329108604,1718109077492,-500.0,0.00024931,2]
[329108605,1718109077502,-151.0,0.00024931,7]
[329108606,1718109077512,-151.0,0.00024931,7]
[329108607,1718109077522,-500.0,0.00024931,2]
[329108608,1718109077532,-390.12085855,0.00024931,2]
[329108609,1718109077542,-500.0,0.00024931,2]
[329108610,1718109077552,-151.0,0.00024931,7]
[329108611,1718109077562,-822.52,0.00024931,2]
[329108612,1718109077572,-551.79,0.00024931,2]
[329108613,1718109077583,-151.0,0.00024931,7]
[329108614,1718109077593,-151.0,0.00024931,7]
[329108615,1718109077603,-522.69,0.00024931,2]
[329108616,1718109077613,-169.797947,0.00024931,7]
[329108617,1718109077624,-253.58558772,0.00024931,2]
[329108618,1718109077634,-500.0,0.00024931,2]
[329108619,1718109077644,-500.0,0.00024931,2]
[329108620,1718109077654,-308.94534584,0.00024931,2]
[329108621,1718109077664,-585.86,0.00024931,2]
[329108622,1718109077674,-500.0,0.00024931,2]
[329108623,1718109077684,-500.0,0.00024931,2]
[329108624,1718109077697,-500.0,0.00024931,2]
[329108625,1718109077708,-500.0,0.00024931,2]
[329108626,1718109077718,-500.0,0.00024931,2]
[329108627,1718109077727,-500.0,0.00024931,2]
[329108628,1718109077737,-500.0,0.00024931,2]
[329108629,1718109077747,-1940.0,0.00024931,2]
[329108630,1718109077757,-802.34,0.00024931,2]
[329108631,1718109077767,-500.0,0.00024931,2]
[329108632,1718109077776,-500.0,0.00024931,2]
[329108633,1718109077786,-589.67,0.00024931,2]
[329108634,1718109077796,-643.83,0.00024931,2]
[329108635,1718109077805,-500.0,0.00024931,2]
[329108636,1718109077815,-457.14036496,0.00024931,2]
[329108637,1718109077824,-2004.27,0.00024931,2]
[329108638,1718109077833,-500.0,0.00024931,2]
[329108639,1718109077842,-920.51,0.00024931,2]
[329108640,1718109077851,-500.0,0.00024931,2]
[329108641,1718109077860,-500.0,0.00024931,2]
[329108642,1718109077870,-754.42,0.00024931,2]
[329108643,1718109077879,-500.0,0.00024931,2]
[329108644,1718109077888,-1243.22,0.00024931,2]
[329108645,1718109077898,-813.43,0.00024931,2]
[329108646,1718109077908,-529.04,0.00024931,2]
[329108647,1718109077917,-520.36909365,0.00024931,2]
[329108648,1718109077926,-500.0,0.00024931,2]
[329108649,1718109077936,-500.0,0.00024931,2]
[329108650,1718109077946,-948.02,0.00024931,2]
[329108651,1718109077955,-500.0,0.00024931,2]
[329108652,1718109077965,-500.0,0.00024931,2]
[329108653,1718109077974,-502.06,0.00024931,2]
[329108654,1718109077984,-500.0,0.00024931,2]
[329108655,1718109077994,-685.68,0.00024931,2]
[329108656,1718109078004,-500.0,0.00024931,2]
[329108657,1718109078014,-500.0,0.00024931,2]
[329108658,1718109078024,-500.0,0.00024931,2]
[329108659,1718109078037,-500.0,0.00024931,2]
[329108660,1718109078047,-1288.31,0.00024931,2]
[329108661,1718109078057,-500.0,0.00024931,2]
[329108662,1718109078067,-500.0,0.00024931,2]
[329108663,1718109078078,-500.0,0.00024931,2]
[329108664,1718109078088,-575.46362902,0.00024931,2]
[329108665,1718109078098,-500.0,0.00024931,2]
[329108666,1718109078108,-500.0,0.00024931,2]
[329108667,1718109078118,-500.0,0.00024931,2]
[329108668,1718109078128,-500.0,0.00024931,2]
[329108669,1718109078138,-500.0,0.00024931,2]
[329108670,1718109078148,-500.0,0.00024931,2]
[329108671,1718109078158,-500.0,0.00024931,2]
[329108672,1718109078168,-175.312221,0.00024931,7]
[329108673,1718109078178,-537.89,0.00024931,2]
[329108674,1718109078187,-2669.87,0.00024931,2]
[329108675,1718109078197,-500.0,0.00024931,2]
[329108676,1718109078207,-175.312221,0.00024931,7]
[329108677,1718109078216,-175.312221,0.00024931,7]
[329108678,1718109078226,-500.0,0.00024931,2]
[329108679,1718109078236,-584.25,0.00024931,2]
[329108680,1718109078247,-570.86665059,0.00024931,2]
[329108681,1718109078257,-175.312221,0.00024931,7]
[329108682,1718109078275,-536.60435199,0.00024931,2]
[329108683,1718109078285,-500.0,0.00024931,2]
[329108684,1718109078295,-175.312221,0.00024931,7]
[329108685,1718109078305,-175.312221,0.00024931,7]
[329108686,1718109078315,-500.0,0.00024931,2]
[329108687,1718109078326,-500.0,0.00024931,2]
[329108688,1718109078336,-500.0,0.00024931,2]
[329108689,1718109078346,-1504.2,0.00024931,2]
[329108690,1718109078356,-837.33,0.00024931,2]
[329108691,1718109078366,-500.0,0.00024931,2]
[329108692,1718109078376,-500.0,0.00024931,2]
[329108693,1718109078386,-500.0,0.00024931,2]
[329108694,1718109078396,-500.0,0.00024931,2]
[329108695,1718109078406,-151.0,0.00024931,7]
[329108696,1718109078416,-151.0,0.00024931,7]
[329108697,1718109078425,-151.0,0.00024931,7]
[329108698,1718109078436,-500.0,0.00024931,2]
[329108699,1718109078447,-555.04143714,0.00024931,2]
[329108700,1718109078457,-528.73,0.00024931,2]
[329108701,1718109078468,-992.5,0.00024931,2]
[329108702,1718109078478,-1166.75,0.00024931,2]
[329108703,1718109078488,-500.0,0.00024931,2]
[329108704,1718109078500,-559.4734945,0.00024931,2]
[329108705,1718109078510,-521.73,0.00024931,2]
[329108706,1718109078520,-151.0,0.00024931,7]
[329108707,1718109078530,-151.0,0.00024931,7]
[329108708,1718109078539,-151.0,0.00024931,7]
[329108709,1718109078549,-500.0,0.00024931,2]
[329108710,1718109078558,-151.0,0.00024931,7]
[329108711,1718109078568,-151.0,0.00024931,7]
[329108712,1718109078578,-211.377681,0.00024931,7]
[329108713,1718109078588,-500.0,0.00024931,2]
[329108714,1718109078599,-500.0,0.00024931,2]
[329108715,1718109078609,-189.30103207,0.00024931,2]
[329108716,1718109078620,-500.0,0.00024931,2]
[329108717,1718109078630,-500.0,0.00024931,2]
[329108718,1718109078640,-500.0,0.00024931,2]
[329108719,1718109078650,-500.0,0.00024931,2]
[329108720,1718109078660,-500.0,0.00024931,2]
[329108721,1718109078670,-500.0,0.00024931,2]
[329108722,1718109078680,-1856.03,0.00024931,2]
[329108723,1718109078691,-390.91,0.00024931,2]
[329108724,1718109078701,-500.0,0.00024931,2]
[329108725,1718109078711,-622.18,0.00024931,2]
[329108726,1718109078721,-664.96,0.00024931,2]
[329108727,1718109078731,-500.0,0.00024931,2]
[329108728,1718109078742,-281.76097755,0.00024931,2]
[329108729,1718109078827,-218.23902245,0.00024931,2]
[329108730,1718109078837,-320.44269146,0.00024931,2]
[329108731,1718109079085,-151.0,0.00024657,7]
[329108732,1718109079098,-500.0,0.00024657,2]
[329108733,1718109079111,-500.0,0.00024657,2]
[329108734,1718109079121,-85.14798671,0.00024931,2]
[329108736,1718109304561,150.5,0.00019615,15]
[329108737,1718109304978,150.5,0.00019605,15]
[329108738,1718109305479,150.5,0.00019595,15]
[329108739,1718109305686,150.5,0.00019615,15]
[329108740,1718109306173,150.5,0.00019605,15]
[329108741,1718109306654,150.5,0.00019595,15]
[329108745,1718109425297,150.5,0.00019716,15]
[329108746,1718109425786,150.5,0.00019706,15]
[329108747,1718109426378,150.5,0.00019696,15]
[329108749,1718109546652,150.5,0.00019716,15]
[329108750,1718109547197,292.0,0.00019706,15]
[329108752,1718109665230,211.37,0.00019716,15]
[329108755,1718109932265,-155.0,0.00013607,2]
[329108756,1718109932290,-155.0,0.00013607,2]
[329108757,1718109932315,-1625.52061624,0.00013608,2]
[329108758,1718109932346,-155.0,0.00013609,2]
[329108759,1718109932373,-2559.96948321,0.00013609,2]
[329108760,1718109932398,-181.48,0.00013617,2]
[329108761,1718109932425,-150.0,0.00013863,2]
[329108762,1718109932452,-231.88454241,0.000139,2]
[329108763,1718109932478,-173.69961228,0.000139,2]
[329108764,1718109932505,-330.85478834,0.000139,2]
[329108765,1718109932532,-152.69,0.0001399,2]
[329108766,1718109932561,-150.0,0.00013997,2]
[329108767,1718109932598,-35493.98377356,0.00013997,2]
[329108768,1718109932626,-204.99679615,0.00013998,2]
[329108769,1718109932654,-179.43696447,0.00013998,2]
[329108770,1718109932682,-155.60039783,0.00013998,2]
[329108771,1718109932711,-585.83814768,0.00013998,2]
[329108772,1718109932734,-155.17085103,0.00013998,2]
[329108773,1718109932760,-204.03400987,0.00013998,2]
[329108774,1718109932788,-544.65639327,0.00013998,2]
[329108775,1718109932817,-435.98926893,0.00013998,2]
[329108776,1718109932846,-193.18760792,0.00013998,2]
[329108777,1718109932874,-335.72685915,0.00013998,2]
[329108778,1718109932905,-12490.27988766,0.00014,2]
[329108779,1718109947255,-210.69459909,0.000139,2]
[329108780,1718109951635,-2138.57685314,0.00013899,2]
[329108781,1718109951661,-2501.37912517,0.000139,2]
[329108782,1718109951686,-178.59896962,0.000139,2]
[329108783,1718109951711,-155.25360211,0.00013999,2]
[329108784,1718109951737,-162.78459659,0.00013999,2]
[329108785,1718109951764,-2417.42515363,0.00013999,2]
[329108786,1718109951793,-13145.98169974,0.00014,2]
[329108789,1718110037105,-455.4668866,0.00013895,2]
[329108790,1718110039128,-1337.99277293,0.00013894,2]
[329108791,1718110039156,-1688.43040434,0.00013895,2]
[329108792,1718110048109,-168.38681321,0.000135,4]
[329108793,1718110049134,-1331.61318679,0.000135,4]
[329108794,1718110049163,-2757.77372449,0.000136,4]
[329108808,1718110232688,-299.68051764,0.000136,2]
[329108810,1718110232700,-342.22627551,0.000136,4]
[329108812,1718110232710,-4292.57166119,0.00013699,2]
[329108813,1718110232721,-4700.0,0.000137,5]
[329108816,1718110232733,-6300.0,0.000138,5]
[329108818,1718110232745,-4934.46164409,0.00013895,2]
[329108820,1718110232755,-7900.0,0.000139,5]
[329108824,1718110232765,-228.48663748,0.000139,2]
[329108827,1718110232776,-462.14262372,0.000139,2]
[329108830,1718110232786,-1808.0491495,0.000139,2]
[329108831,1718110232796,-323.49891213,0.000139,2]
[329108833,1718110232807,-152.74,0.0001399,2]
[329108834,1718110232817,-155.38937927,0.00013998,2]
[329108835,1718110232827,-204.99679615,0.00013998,2]
[329108836,1718110232837,-1537.02481247,0.00013998,2]
[329108837,1718110232846,-1335.96722707,0.00013998,2]
[329108838,1718110232856,-351.83332282,0.00013998,2]
[329108839,1718110232866,-759.54416613,0.00013999,2]
[329108840,1718110232876,-66569.25727399,0.00014,2]
[329108841,1718110232889,-12049.53630709,0.00014,2]
[329108842,1718110233343,-505490.96755109,0.00014,2]
[329108843,1718110233544,-679.73,0.00014,2]